fUST/lending_fUST_20250513
["ID","MTS","AMOUNT","RATE_DAILY","PERIOD"]
[360875144,1747093848040,-400.0,0.00019178,2]
[360875146,1747093848049,-400.0,0.00019178,2]
[360875148,1747093848059,-1394.92,0.00019178,2]
[360875150,1747093848068,-400.0,0.00019178,2]
[360875152,1747093848077,-400.0,0.00019178,2]
[360875154,1747093848087,-400.0,0.00019178,2]
[360875156,1747093848096,-400.0,0.00019178,2]
[360875158,1747093848105,-722.91,0.00019178,2]
[360875160,1747093848115,-400.0,0.00019178,2]
[360875162,1747093848125,-400.0,0.00019178,2]
[360875164,1747093848134,-1071.41,0.00019178,2]
[360875166,1747093848144,-1000.0,0.00019178,2]
[360875168,1747093848153,-262.93279581,0.00019178,2]
[360875170,1747093848163,-26685.9,0.00019178,2]
[360875172,1747093848173,-205.64765506,0.00019178,2]
[360875174,1747093848183,-400.0,0.00019178,2]
[360875176,1747093848194,-400.0,0.00019178,2]
[360875178,1747093848203,-255.894159,0.00019178,2]
[360875180,1747093848212,-151.0,0.00019178,2]
[360875182,1747093848222,-255.894159,0.00019178,2]
[360875184,1747093848231,-255.894159,0.00019178,2]
[360875186,1747093848240,-400.0,0.00019178,2]
[360875188,1747093848250,-255.894159,0.00019178,2]
[360875190,1747093848259,-400.0,0.00019178,2]
[360875192,1747093848269,-400.0,0.00019178,2]
[360875194,1747093848278,-500.0,0.00019178,2]
[360875196,1747093848288,-255.894159,0.00019178,2]
[360875198,1747093848297,-255.894159,0.00019178,2]
[360875200,1747093848306,-469.15,0.00019178,2]
[360875202,1747093848316,-255.894159,0.00019178,2]
[360875204,1747093848326,-400.0,0.00019178,2]
[360875206,1747093848335,-400.0,0.00019178,2]
[360875208,1747093848345,-500.0,0.00019178,2]
[360875210,1747093848354,-255.894159,0.00019178,2]
[360875212,1747093848364,-400.0,0.00019178,2]
[360875214,1747093848374,-401.10982694,0.00019178,2]
[360875216,1747093848383,-2118.82,0.00019178,2]
[360875218,1747093848393,-400.0,0.00019178,2]
[360875220,1747093848402,-400.0,0.00019178,2]
[360875222,1747093848411,-221.79283023,0.00019178,2]
[360875224,1747093848420,-400.0,0.00019178,2]
[360875226,1747093848430,-263.97011275,0.00019178,2]
[360875228,1747093848440,-771.66,0.00019178,2]
[360875230,1747093848449,-151.0,0.00019178,2]
[360875232,1747093848459,-400.0,0.00019178,2]
[360875234,1747093848468,-400.0,0.00019178,2]
[360875236,1747093848477,-400.0,0.00019178,2]
[360875238,1747093848487,-701.1,0.00019178,2]
[360875240,1747093848495,-400.0,0.00019178,2]
[360875242,1747093848505,-400.0,0.00019178,2]
[360875244,1747093848514,-151.0,0.00019178,2]
[360875246,1747093848523,-400.0,0.00019178,2]
[360875248,1747093848533,-400.0,0.00019178,2]
[360875250,1747093848543,-400.0,0.00019178,2]
[360875252,1747093848552,-500.0,0.00019178,2]
[360875254,1747093848561,-3553.15,0.00019178,2]
[360875256,1747093848571,-2465.49,0.00019178,2]
[360875258,1747093848580,-400.0,0.00019178,2]
[360875260,1747093848590,-1367.0,0.00019178,2]
[360875262,1747093848599,-400.0,0.00019178,2]
[360875264,1747093848608,-400.0,0.00019178,2]
[360875266,1747093848618,-400.0,0.00019178,2]
[360875268,1747093848627,-786.86,0.00019178,2]
[360875270,1747093848636,-400.0,0.00019178,2]
[360875272,1747093848647,-930.43,0.00019178,2]
[360875274,1747093848657,-4159.04,0.00019178,2]
[360875276,1747093848666,-151.0,0.00019178,2]
[360875278,1747093848676,-400.0,0.00019178,2]
[360875280,1747093848685,-151.0,0.00019178,2]
[360875282,1747093848695,-3612.44,0.00019178,2]
[360875304,1747093848899,-400.0,0.00019178,2]
[360875306,1747093848910,-151.0,0.00019178,2]
[360875308,1747093848920,-151.0,0.00019178,2]
[360875310,1747093848930,-433.86,0.00019178,2]
[360875312,1747093848940,-400.0,0.00019178,2]
[360875314,1747093848949,-500.0,0.00019178,2]
[360875316,1747093848959,-400.0,0.00019178,2]
[360875319,1747093848969,-400.0,0.00019178,2]
[360875321,1747093848979,-400.0,0.00019178,2]
[360875323,1747093848989,-151.0,0.00019178,2]
[360875325,1747093848999,-179.845406,0.00019178,2]
[360875327,1747093849008,-400.0,0.00019178,2]
[360875329,1747093849018,-400.0,0.00019178,2]
[360875331,1747093849028,-1097.49,0.00019178,2]
[360875333,1747093849038,-1349.66,0.00019178,2]
[360875335,1747093849049,-1097.49,0.00019178,2]
[360875337,1747093849059,-1097.49,0.00019178,2]
[360875339,1747093849068,-1097.49,0.00019178,2]
[360875341,1747093849078,-400.0,0.00019178,2]
[360875343,1747093849087,-4495.73,0.00019178,2]
[360875345,1747093849097,-1097.49,0.00019178,2]
[360875347,1747093849107,-340.14609501,0.00019178,2]
[360875349,1747093849117,-1097.49,0.00019178,2]
[360875351,1747093849126,-1097.49,0.00019178,2]
[360875353,1747093849136,-1097.49,0.00019178,2]
[360875355,1747093849145,-4667.89,0.00019178,2]
[360875357,1747093849155,-1097.49,0.00019178,2]
[360875359,1747093849165,-657.49,0.00019178,2]
[360875361,1747093849175,-1097.49,0.00019178,2]
[360875363,1747093849184,-1097.49,0.00019178,2]
[360875365,1747093849194,-400.0,0.00019178,2]
[360875367,1747093849204,-1097.49,0.00019178,2]
[360875369,1747093849214,-400.0,0.00019178,2]
[360875371,1747093849224,-1097.49,0.00019178,2]
[360875373,1747093849234,-1097.49,0.00019178,2]
[360875375,1747093849244,-1097.49,0.00019178,2]
[360875377,1747093849254,-1097.49,0.00019178,2]
[360875379,1747093849264,-1097.49,0.00019178,2]
[360875381,1747093849273,-1097.49,0.00019178,2]
[360875383,1747093849283,-1097.49,0.00019178,2]
[360875386,1747093849293,-1097.49,0.00019178,2]
[360875388,1747093849303,-1097.49,0.00019178,2]
[360875390,1747093849313,-2786.23,0.00019178,2]
[360875392,1747093849323,-1097.49,0.00019178,2]
[360875394,1747093849332,-400.0,0.00019178,2]
[360875396,1747093849342,-1097.49,0.00019178,2]
[360875398,1747093849352,-1097.65316618,0.00019178,2]
[360875400,1747093849361,-400.0,0.00019178,2]
[360875402,1747093849370,-151.0,0.00019178,2]
[360875404,1747093849380,-400.0,0.00019178,2]
[360875406,1747093849391,-400.0,0.00019178,2]
[360875408,1747093849401,-400.0,0.00019178,2]
[360875410,1747093849411,-151.0,0.00019178,2]
[360875412,1747093849421,-400.0,0.00019178,2]
[360875414,1747093849431,-400.0,0.00019178,2]
[360875416,1747093849441,-151.0,0.00019178,2]
[360875418,1747093849451,-1790.08,0.00019178,2]
[360875420,1747093849461,-400.0,0.00019178,2]
[360875422,1747093849470,-765.04,0.00019178,2]
[360875424,1747093849480,-151.0,0.00019178,2]
[360875426,1747093849489,-400.0,0.00019178,2]
[360875429,1747093849501,-1380.21,0.00019178,2]
[360875431,1747093849511,-400.0,0.00019178,2]
[360875433,1747093849520,-400.0,0.00019178,2]
[360875435,1747093849531,-1619.67,0.00019178,2]
[360875437,1747093849542,-400.0,0.00019178,2]
[360875439,1747093849552,-485.39,0.00019178,2]
[360875441,1747093849562,-478.69,0.00019178,2]
[360875443,1747093849572,-400.0,0.00019178,2]
[360875445,1747093849582,-400.0,0.00019178,2]
[360875447,1747093849592,-400.0,0.00019178,2]
[360875449,1747093849602,-400.0,0.00019178,2]
[360875451,1747093849611,-900.32,0.00019178,2]
[360875453,1747093849621,-400.0,0.00019178,2]
[360875455,1747093849631,-3483.48,0.00019178,2]
[360875457,1747093849641,-400.0,0.00019178,2]
[360875459,1747093849651,-400.0,0.00019178,2]
[360875461,1747093849660,-500.0,0.00019178,2]
[360875463,1747093849669,-500.0,0.00019178,2]
[360875465,1747093849679,-512.06178583,0.00019178,2]
[360875468,1747093849689,-451.08,0.00019178,2]
[360875469,1747093849698,-508.82,0.00019178,2]
[360875472,1747093849708,-3214.5,0.00019178,2]
[360875474,1747093849717,-400.0,0.00019178,2]
[360875476,1747093849728,-2296.59,0.00019178,2]
[360875478,1747093849738,-400.0,0.00019178,2]
[360875480,1747093849748,-400.0,0.00019178,2]
[360875482,1747093849758,-500.0,0.00019178,2]
[360875484,1747093849767,-991.08,0.00019178,2]
[360875486,1747093849777,-400.0,0.00019178,2]
[360875488,1747093849787,-400.0,0.00019178,2]
[360875490,1747093849797,-151.0,0.00019178,2]
[360875492,1747093849809,-151.0,0.00019178,2]
[360875494,1747093849828,-883.18,0.00019178,2]
[360875496,1747093849841,-151.0,0.00019178,2]
[360875498,1747093849852,-151.0,0.00019178,2]
[360875500,1747093849862,-10005.42,0.00019178,2]
[360875502,1747093849872,-500.0,0.00019178,2]
[360875504,1747093849886,-151.0,0.00019178,2]
[360875506,1747093849899,-1660.57,0.00019178,2]
[360875508,1747093849910,-400.0,0.00019178,2]
[360875510,1747093849920,-363.63417833,0.00019178,2]
[360875561,1747093850394,-36.36582167,0.00019178,2]
[360875563,1747093850404,-690.96,0.00019178,2]
[360875565,1747093850414,-3274.93,0.00019178,2]
[360875567,1747093850423,-528.21,0.00019178,2]
[360875569,1747093850432,-400.0,0.00019178,2]
[360875571,1747093850443,-400.0,0.00019178,2]
[360875573,1747093850453,-400.0,0.00019178,2]
[360875575,1747093850463,-400.0,0.00019178,2]
[360875577,1747093850472,-1553.76,0.00019178,2]
[360875579,1747093850481,-2059.67,0.00019178,2]
[360875581,1747093850490,-402.20343458,0.00019178,2]
[360875583,1747093850500,-1139.04,0.00019178,2]
[360875585,1747093850509,-20538.8,0.00019178,2]
[360875587,1747093850518,-544.93,0.00019178,2]
[360875589,1747093850528,-400.0,0.00019178,2]
[360875591,1747093850537,-400.0,0.00019178,2]
[360875593,1747093850546,-484.44,0.00019178,2]
[360875595,1747093850556,-400.0,0.00019178,2]
[360875597,1747093850565,-526.24067454,0.00019178,2]
[360875600,1747093850576,-400.0,0.00019178,2]
[360875601,1747093850586,-1051.3,0.00019178,2]
[360875604,1747093850595,-400.0,0.00019178,2]
[360875606,1747093850604,-529.83,0.00019178,2]
[360875608,1747093850614,-1185.4,0.00019178,2]
[360875610,1747093850623,-1190.28,0.00019178,2]
[360875612,1747093850632,-6205.42,0.00019178,2]
[360875614,1747093850642,-400.0,0.00019178,2]
[360875616,1747093850651,-400.0,0.00019178,2]
[360875618,1747093850660,-400.0,0.00019178,2]
[360875620,1747093850669,-400.0,0.00019178,2]
[360875622,1747093850679,-400.0,0.00019178,2]
[360875624,1747093850688,-400.0,0.00019178,2]
[360875626,1747093850698,-662.13,0.00019178,2]
[360875628,1747093850707,-928.44,0.00019178,2]
[360875630,1747093850716,-400.0,0.00019178,2]
[360875632,1747093850725,-400.0,0.00019178,2]
[360875633,1747093850735,-400.0,0.00019178,2]
[360875634,1747093850744,-2536.16,0.00019178,2]
[360875635,1747093850753,-8734.32,0.00019178,2]
[360875636,1747093850762,-1416.22,0.00019178,2]
[360875637,1747093850772,-9706.58,0.00019178,2]
[360875638,1747093850782,-400.0,0.00019178,2]
[360875639,1747093850791,-400.0,0.00019178,2]
[360875640,1747093850801,-400.0,0.00019178,2]
[360875641,1747093850810,-1128.06,0.00019178,2]
[360875642,1747093850819,-151.0,0.00019178,2]
[360875643,1747093850829,-400.0,0.00019178,2]
[360875644,1747093850842,-876.41,0.00019178,2]
[360875645,1747093850851,-151.0,0.00019178,2]
[360875646,1747093850860,-151.0,0.00019178,2]
[360875647,1747093850870,-151.0,0.00019178,2]
[360875649,1747093850881,-400.0,0.00019178,2]
[360875651,1747093850890,-400.0,0.00019178,2]
[360875653,1747093850900,-405.35,0.00019178,2]
[360875655,1747093850910,-532.44,0.00019178,2]
[360875657,1747093850921,-703.34,0.00019178,2]
[360875659,1747093850931,-400.0,0.00019178,2]
[360875661,1747093850940,-1256.28,0.00019178,2]
[360875663,1747093850950,-909.68,0.00019178,2]
[360875665,1747093850960,-400.0,0.00019178,2]
[360875667,1747093850969,-400.0,0.00019178,2]
[360875669,1747093850978,-508.23,0.00019178,2]
[360875671,1747093850988,-1065.67,0.00019178,2]
[360875673,1747093850997,-953.09,0.00019178,2]
[360875675,1747093851006,-4318.51,0.00019178,2]
[360875677,1747093851016,-1261.26,0.00019178,2]
[360875679,1747093851026,-791.34,0.00019178,2]
[360875681,1747093851036,-2626.42,0.00019178,2]
[360875683,1747093851046,-332.72497888,0.00019178,2]
[360875685,1747093851055,-1456.18,0.00019178,2]
[360875687,1747093851065,-400.0,0.00019178,2]
[360875689,1747093851074,-677.33,0.00019178,2]
[360875691,1747093851083,-481.56,0.00019178,2]
[360875693,1747093851093,-678.69,0.00019178,2]
[360875695,1747093851102,-400.0,0.00019178,2]
[360875697,1747093851111,-400.0,0.00019178,2]
[360875699,1747093851120,-400.0,0.00019178,2]
[360875701,1747093851129,-400.0,0.00019178,2]
[360875703,1747093851139,-400.0,0.00019178,2]
[360875705,1747093851148,-7876.78,0.00019178,2]
[360875707,1747093851158,-3321.5,0.00019178,2]
[360875709,1747093851167,-503.90675648,0.00019178,2]
[360875711,1747093851177,-400.0,0.00019178,2]
[360875713,1747093851187,-313.98270114,0.00019178,2]
[360875715,1747093851197,-400.0,0.00019178,2]
[360875717,1747093851206,-400.0,0.00019178,2]
[360875719,1747093851215,-400.0,0.00019178,2]
[360875721,1747093851225,-203.42036385,0.00019178,2]
[360875723,1747093851235,-400.0,0.00019178,2]
[360875725,1747093851245,-400.0,0.00019178,2]
[360875727,1747093851255,-533.22,0.00019178,2]
[360875729,1747093851266,-400.0,0.00019178,2]
[360875731,1747093851276,-400.0,0.00019178,2]
[360875733,1747093851286,-400.0,0.00019178,2]
[360875735,1747093851296,-400.0,0.00019178,2]
[360875737,1747093851306,-400.0,0.00019178,2]
[360875760,1747093851514,-569.26,0.00019178,2]
[360875762,1747093851527,-2989.35,0.00019178,2]
[360875764,1747093851536,-442.99,0.00019178,2]
[360875766,1747093851546,-3663.95,0.00019178,2]
[360875768,1747093851556,-400.0,0.00019178,2]
[360875770,1747093851565,-400.0,0.00019178,2]
[360875772,1747093851575,-468.16,0.00019178,2]
[360875774,1747093851584,-701.31,0.00019178,2]
[360875777,1747093851594,-4455.700667,0.00019178,2]
[360875778,1747093851603,-400.0,0.00019178,2]
[360875781,1747093851612,-7534.01,0.00019178,2]
[360875783,1747093851622,-4455.700667,0.00019178,2]
[360875785,1747093851631,-4455.700667,0.00019178,2]
[360875787,1747093851642,-4455.700667,0.00019178,2]
[360875789,1747093851651,-1451.13,0.00019178,2]
[360875791,1747093851661,-2494.55,0.00019178,2]
[360875793,1747093851671,-2721.09,0.00019178,2]
[360875795,1747093851680,-400.0,0.00019178,2]
[360875797,1747093851689,-4455.700667,0.00019178,2]
[360875799,1747093851699,-400.0,0.00019178,2]
[360875801,1747093851708,-1111.492314,0.00019178,2]
[360875803,1747093851717,-400.0,0.00019178,2]
[360875805,1747093851727,-4455.700667,0.00019178,2]
[360875807,1747093851737,-400.0,0.00019178,2]
[360875809,1747093851747,-1111.492314,0.00019178,2]
[360875811,1747093851755,-4455.700667,0.00019178,2]
[360875813,1747093851765,-669.99,0.00019178,2]
[360875815,1747093851774,-4455.700667,0.00019178,2]
[360875817,1747093851784,-1111.492314,0.00019178,2]
[360875819,1747093851793,-400.0,0.00019178,2]
[360875821,1747093851802,-400.0,0.00019178,2]
[360875823,1747093851812,-1111.492314,0.00019178,2]
[360875825,1747093851822,-500.0,0.00019178,2]
[360875827,1747093851831,-1087.41,0.00019178,2]
[360875829,1747093851841,-400.0,0.00019178,2]
[360875831,1747093851853,-500.0,0.00019178,2]
[360875833,1747093851862,-1111.492314,0.00019178,2]
[360875835,1747093851872,-400.0,0.00019178,2]
[360875837,1747093851882,-1216.39,0.00019178,2]
[360875839,1747093851891,-1111.492314,0.00019178,2]
[360875841,1747093851900,-151.0,0.00019178,2]
[360875843,1747093851910,-2271.86,0.00019178,2]
[360875845,1747093851919,-1111.492314,0.00019178,2]
[360875847,1747093851929,-400.0,0.00019178,2]
[360875849,1747093851939,-1111.492314,0.00019178,2]
[360875851,1747093851949,-3769.42,0.00019178,2]
[360875853,1747093851958,-247.670191,0.00019178,2]
[360875855,1747093851968,-1238.74,0.00019178,2]
[360875857,1747093851978,-247.670191,0.00019178,2]
[360875859,1747093851987,-247.670191,0.00019178,2]
[360875861,1747093851997,-400.0,0.00019178,2]
[360875863,1747093852006,-10471.68,0.00019178,2]
[360875865,1747093852016,-247.670191,0.00019178,2]
[360875867,1747093852025,-745.56,0.00019178,2]
[360875869,1747093852034,-500.0,0.00019178,2]
[360875871,1747093852043,-461.8,0.00019178,2]
[360875873,1747093852053,-151.0,0.00019178,2]
[360875875,1747093852062,-1411.0,0.00019178,2]
[360875877,1747093852072,-400.0,0.00019178,2]
[360875879,1747093852081,-247.670191,0.00019178,2]
[360875881,1747093852091,-500.0,0.00019178,2]
[360875883,1747093852100,-247.670191,0.00019178,2]
[360875885,1747093852109,-772.64,0.00019178,2]
[360875887,1747093852120,-247.670191,0.00019178,2]
[360875889,1747093852130,-400.0,0.00019178,2]
[360875891,1747093852140,-247.670191,0.00019178,2]
[360875893,1747093852149,-575.26,0.00019178,2]
[360875895,1747093852158,-1035.14,0.00019178,2]
[360875897,1747093852168,-400.0,0.00019178,2]
[360875899,1747093852178,-400.0,0.00019178,2]
[360875901,1747093852187,-1000.0,0.00019178,2]
[360875903,1747093852197,-400.0,0.00019178,2]
[360875905,1747093852206,-400.0,0.00019178,2]
[360875907,1747093852216,-2487.62,0.00019178,2]
[360875909,1747093852225,-400.0,0.00019178,2]
[360875911,1747093852235,-3512.23,0.00019178,2]
[360875914,1747093852245,-1660.81,0.00019178,2]
[360875916,1747093852255,-400.0,0.00019178,2]
[360875917,1747093852265,-400.0,0.00019178,2]
[360875919,1747093852274,-464.29,0.00019178,2]
[360875921,1747093852284,-400.0,0.00019178,2]
[360875924,1747093852294,-816.17,0.00019178,2]
[360875925,1747093852303,-611.44,0.00019178,2]
[360875927,1747093852312,-431.55511012,0.00019178,2]
[360875930,1747093852322,-151.0,0.00019178,2]
[360875932,1747093852332,-151.0,0.00019178,2]
[360875933,1747093852341,-400.0,0.00019178,2]
[360875935,1747093852351,-151.0,0.00019178,2]
[360875937,1747093852360,-151.0,0.00019178,2]
[360875940,1747093852370,-435.31,0.00019178,2]
[360875942,1747093852380,-400.0,0.00019178,2]
[360875943,1747093852390,-781.44,0.00019178,2]
[360875946,1747093852400,-400.0,0.00019178,2]
[360875947,1747093852409,-400.0,0.00019178,2]
[360875949,1747093852421,-400.0,0.00019178,2]
[360875952,1747093852431,-400.0,0.00019178,2]
[360875953,1747093852441,-400.0,0.00019178,2]
[360875955,1747093852451,-842.01,0.00019178,2]
[360875957,1747093852461,-158.399852,0.00019178,2]
[360875959,1747093852470,-1004.11,0.00019178,2]
[360875961,1747093852480,-400.0,0.00019178,2]
[360875963,1747093852489,-3425.18,0.00019178,2]
[360875965,1747093852498,-400.0,0.00019178,2]
[360875967,1747093852507,-502.10581998,0.00019178,2]
[360875969,1747093852516,-400.0,0.00019178,2]
[360875971,1747093852526,-400.0,0.00019178,2]
[360875973,1747093852535,-502.88319068,0.00019178,2]
[360875975,1747093852544,-400.0,0.00019178,2]
[360875977,1747093852553,-1261.34,0.00019178,2]
[360875979,1747093852562,-26861.23,0.00019178,2]
[360875981,1747093852571,-400.0,0.00019178,2]
[360875983,1747093852582,-400.0,0.00019178,2]
[360875985,1747093852592,-1726.32,0.00019178,2]
[360875987,1747093852601,-400.0,0.00019178,2]
[360875989,1747093852610,-400.0,0.00019178,2]
[360875991,1747093852619,-400.0,0.00019178,2]
[360875993,1747093852627,-400.0,0.00019178,2]
[360875995,1747093852636,-927.24,0.00019178,2]
[360875997,1747093852645,-8113.92,0.00019178,2]
[360875999,1747093852654,-400.0,0.00019178,2]
[360876001,1747093852663,-446.4,0.00019178,2]
[360876003,1747093852672,-400.0,0.00019178,2]
[360876005,1747093852682,-400.0,0.00019178,2]
[360876007,1747093852692,-3047.18,0.00019178,2]
[360876009,1747093852701,-400.0,0.00019178,2]
[360876011,1747093852710,-400.0,0.00019178,2]
[360876013,1747093852719,-16349.57,0.00019178,2]
[360876015,1747093852728,-271.21259489,0.00019178,2]
[360876017,1747093852737,-301.16671777,0.00019178,2]
[360876019,1747093852746,-157.21894377,0.00019178,2]
[360876021,1747093852755,-400.0,0.00019178,2]
[360876023,1747093852764,-626.79,0.00019178,2]
[360876025,1747093852773,-400.0,0.00019178,2]
[360876027,1747093852783,-1642.25,0.00019178,2]
[360876029,1747093852791,-400.0,0.00019178,2]
[360876031,1747093852801,-400.0,0.00019178,2]
[360876033,1747093852810,-400.0,0.00019178,2]
[360876035,1747093852819,-400.0,0.00019178,2]
[360876037,1747093852828,-1497.06,0.00019178,2]
[360876039,1747093852839,-400.0,0.00019178,2]
[360876041,1747093852848,-743.18,0.00019178,2]
[360876043,1747093852857,-400.0,0.00019178,2]
[360876045,1747093852867,-400.0,0.00019178,2]
[360876047,1747093852875,-3864.62,0.00019178,2]
[360876049,1747093852885,-400.0,0.00019178,2]
[360876051,1747093852894,-400.0,0.00019178,2]
[360876053,1747093852903,-507.72,0.00019178,2]
[360876055,1747093852913,-154.689294,0.00019178,2]
[360876057,1747093852924,-400.0,0.00019178,2]
[360876059,1747093852933,-5988.33,0.00019178,2]
[360876061,1747093852942,-439.25,0.00019178,2]
[360876063,1747093852951,-1777.85,0.00019178,2]
[360876065,1747093852961,-154.689294,0.00019178,2]
[360876067,1747093852970,-154.689294,0.00019178,2]
[360876069,1747093852979,-400.0,0.00019178,2]
[360876071,1747093852989,-154.689294,0.00019178,2]
[360876073,1747093852998,-400.0,0.00019178,2]
[360876075,1747093853007,-3334.02,0.00019178,2]
[360876077,1747093853017,-5039.43,0.00019178,2]
[360876079,1747093853026,-426.21,0.00019178,2]
[360876081,1747093853035,-400.0,0.00019178,2]
[360876083,1747093853045,-400.0,0.00019178,2]
[360876085,1747093853054,-154.689294,0.00019178,2]
[360876087,1747093853063,-154.689294,0.00019178,2]
[360876089,1747093853072,-154.689294,0.00019178,2]
[360876091,1747093853082,-400.0,0.00019178,2]
[360876093,1747093853091,-154.689294,0.00019178,2]
[360876095,1747093853100,-400.0,0.00019178,2]
[360876097,1747093853109,-562.66,0.00019178,2]
[360876099,1747093853118,-844.94,0.00019178,2]
[360876101,1747093853127,-500.0,0.00019178,2]
[360876103,1747093853137,-500.0,0.00019178,2]
[360876105,1747093853146,-500.0,0.00019178,2]
[360876107,1747093853156,-720.56,0.00019178,2]
[360876109,1747093853165,-500.0,0.00019178,2]
[360876111,1747093853176,-500.0,0.00019178,2]
[360876113,1747093853185,-500.0,0.00019178,2]
[360876115,1747093853195,-500.0,0.00019178,2]
[360876117,1747093853204,-400.0,0.00019178,2]
[360876119,1747093853215,-581.95645242,0.00019178,2]
[360876121,1747093853224,-400.0,0.00019178,2]
[360876123,1747093853233,-400.0,0.00019178,2]
[360876125,1747093853243,-1170.166691,0.00019178,2]
[360876127,1747093853252,-1170.166691,0.00019178,2]
[360876129,1747093853261,-1170.166691,0.00019178,2]
[360876131,1747093853270,-1700.82,0.00019178,2]
[360876132,1747093853279,-400.0,0.00019178,2]
[360876133,1747093853289,-1170.166691,0.00019178,2]
[360876134,1747093853299,-400.0,0.00019178,2]
[360876135,1747093853308,-476.58100397,0.00019178,2]
[360876136,1747093853318,-466.82,0.00019178,2]
[360876137,1747093853327,-927.62,0.00019178,2]
[360876138,1747093853337,-1170.166691,0.00019178,2]
[360876139,1747093853347,-674.82,0.00019178,2]
[360876140,1747093853356,-1170.166691,0.00019178,2]
[360876141,1747093853366,-1170.166691,0.00019178,2]
[360876142,1747093853375,-166.270002,0.00019178,2]
[360876143,1747093853384,-153.0,0.00019178,2]
[360876144,1747093853393,-153.0,0.00019178,2]
[360876145,1747093853403,-153.0,0.00019178,2]
[360876146,1747093853412,-153.0,0.00019178,2]
[360876147,1747093853422,-153.0,0.00019178,2]
[360876148,1747093853432,-153.0,0.00019178,2]
[360876149,1747093853441,-153.0,0.00019178,2]
[360876150,1747093853450,-153.0,0.00019178,2]
[360876151,1747093853460,-153.0,0.00019178,2]
[360876152,1747093853469,-153.0,0.00019178,2]
[360876153,1747093853478,-153.0,0.00019178,2]
[360876154,1747093853487,-153.0,0.00019178,2]
[360876155,1747093853496,-153.0,0.00019178,2]
[360876156,1747093853506,-153.0,0.00019178,2]
[360876157,1747093853515,-153.0,0.00019178,2]
[360876158,1747093853524,-153.0,0.00019178,2]
[360876159,1747093853533,-153.0,0.00019178,2]
[360876160,1747093853542,-153.0,0.00019178,2]
[360876161,1747093853551,-153.0,0.00019178,2]
[360876162,1747093853561,-153.0,0.00019178,2]
[360876163,1747093853571,-153.0,0.00019178,2]
[360876164,1747093853580,-153.0,0.00019178,2]
[360876165,1747093853590,-153.0,0.00019178,2]
[360876166,1747093853599,-153.0,0.00019178,2]
[360876167,1747093853608,-153.0,0.00019178,2]
[360876168,1747093853618,-153.0,0.00019178,2]
[360876169,1747093853627,-153.0,0.00019178,2]
[360876170,1747093853636,-153.0,0.00019178,2]
[360876171,1747093853646,-153.0,0.00019178,2]
[360876172,1747093853656,-153.0,0.00019178,2]
[360876173,1747093853666,-153.0,0.00019178,2]
[360876174,1747093853676,-153.0,0.00019178,2]
[360876175,1747093853685,-153.0,0.00019178,2]
[360876176,1747093853695,-153.0,0.00019178,2]
[360876177,1747093853704,-153.0,0.00019178,2]